bitfinex/quotes_SOLUSD_20250410
["timestamp","ask_amount","ask_price","bid_price","bid_amount"]
[1744304424021,71.47753733,109.35,109.3,44.1287989]
[1744304424311,60.80763733,109.32,109.3,0.03]
[1744304424506,26.0,109.32,109.3,0.03]
[1744304425610,34.80763733,109.31,109.3,0.03]
[1744304425917,43.95583733,109.31,109.3,0.03]
[1744304427112,35.1475,109.32,109.3,0.03]
[1744304427295,26.0,109.31,109.3,0.03]
[1744304427915,43.95463733,109.33,109.3,0.03]
[1744304428813,34.80763733,109.32,109.3,0.03]
[1744304429214,43.95463733,109.33,109.3,0.03]
[1744304429616,9.1432,109.37,109.32,34.80763733]
[1744304429938,43.94873733,109.4,109.36,34.80763733]
[1744304430094,43.94873733,109.4,109.34,0.14216157]
[1744304430300,34.80763733,109.39,109.35,34.80763733]
[1744304430506,43.94873733,109.4,109.36,34.80763733]
[1744304430708,15.3769,109.41,109.36,34.80763733]
[1744304430898,0.063,109.44,109.4,34.80763733]
[1744304431103,0.063,109.44,109.41,34.80763733]
[1744304431307,0.063,109.44,109.43,34.80763733]
[1744304431508,0.063,109.44,109.43,34.9497989]
[1744304432001,0.063,109.44,109.42,14.7]
[1744304432205,0.063,109.44,109.43,34.9497989]
[1744304433220,0.063,109.44,109.43,44.0879989]
[1744304435225,0.063,109.44,109.42,14.7]
[1744304435805,0.063,109.44,109.42,49.50763733]
[1744304437928,0.063,109.44,109.42,14.7]
[1744304438124,0.063,109.44,109.42,49.50763733]
[1744304438309,0.063,109.44,109.42,14.7]
[1744304438826,0.063,109.44,109.42,49.50763733]
[1744304439215,0.063,109.44,109.43,34.80763733]
[1744304440305,0.063,109.44,109.42,14.7]
[1744304440502,0.063,109.44,109.42,49.50763733]
[1744304440702,0.063,109.44,109.42,14.7]
[1744304440930,0.063,109.44,109.43,88.69140823]
[1744304441236,0.063,109.45,109.44,18.933972]
[1744304441430,0.063,109.45,109.44,88.54924666]
[1744304441633,0.063,109.45,109.44,53.74160933]
[1744304442020,0.063,109.45,109.44,169.69140823]
[1744304442329,0.063,109.45,109.44,178.82880823]
[1744304442520,0.063,109.47,109.45,100.07613357]
[1744304442728,0.063,109.47,109.46,53.8837709]
[1744304443137,0.063,109.47,109.46,19.07613357]
[1744304443332,0.063,109.47,109.46,53.8837709]
[1744304443510,0.0001,109.47,109.46,134.8837709]
[1744304443713,0.063,109.52,109.49,51.63393357]
[1744304444011,0.063,109.55,109.54,45.07613357]
[1744304444210,0.063,109.55,109.54,204.82040823]
[1744304444412,0.063,109.55,109.54,144.0127709]
[1744304445816,0.063,109.55,109.54,148.47265034]
[1744304446131,0.063,109.55,109.51,90.131]
[1744304446331,0.063,109.55,109.54,34.80763733]
[1744304446541,0.063,109.55,109.52,81.0]
[1744304446717,0.063,109.55,109.52,124.93833733]
[1744304446917,0.063,109.55,109.52,90.1307]
[1744304447236,0.063,109.55,109.53,34.80763733]
[1744304447530,0.063,109.55,109.53,0.14216157]
[1744304447730,0.063,109.55,109.52,115.80763733]
[1744304447938,0.063,109.55,109.53,34.80763733]
[1744304448112,0.063,109.55,109.54,34.9497989]
[1744304448311,0.063,109.55,109.53,43.93743733]
[1744304448508,0.063,109.55,109.54,34.80763733]
[1744304448933,0.063,109.55,109.54,34.9497989]
[1744304449238,0.063,109.55,109.52,90.1304]
[1744304449431,0.063,109.55,109.53,0.14216157]
[1744304449614,0.063,109.55,109.53,34.9497989]
[1744304450341,0.063,109.55,109.53,44.0795989]
[1744304451437,0.063,109.55,109.53,9.27196157]
[1744304451642,0.063,109.55,109.53,44.0795989]
[1744304451841,34.87063733,109.55,109.52,81.0]
[1744304452014,0.063,109.55,109.53,0.14216157]
[1744304452319,0.063,109.55,109.53,34.9497989]
[1744304452842,0.063,109.55,109.53,44.0793989]
[1744304453240,34.80763733,109.54,109.51,4.54838928]
[1744304453444,0.063,109.55,109.52,34.80763733]
[1744304453732,34.87063733,109.55,109.51,94.67958928]
[1744304453946,0.063,109.55,109.51,129.48722661]
[1744304454148,0.063,109.55,109.52,34.80763733]
[1744304454446,0.063,109.55,109.52,44.0803989]
[1744304454744,34.80763733,109.54,109.51,81.0]
[1744304455239,34.87063733,109.55,109.51,81.0]
[1744304455421,34.80763733,109.54,109.51,81.0]
[1744304455622,34.87063733,109.55,109.51,81.0]
[1744304455824,0.063,109.55,109.52,34.80763733]
[1744304456242,0.063,109.55,109.51,90.1315]
[1744304456243,0.063,109.55,109.51,124.93913733]
[1744304456439,34.87063733,109.55,109.51,90.1315]
[1744304456644,0.063,109.55,109.54,0.14216157]
[1744304456946,0.063,109.55,109.53,115.80763733]
[1744304457129,0.063,109.55,109.54,34.80763733]
[1744304457528,0.063,109.55,109.54,134.8837709]
[1744304458651,0.063,109.55,109.54,144.0127709]
[1744304458850,0.063,109.55,109.54,125.0787989]
[1744304460232,0.063,109.55,109.5,153.25773733]
[1744304460434,0.063,109.55,109.52,0.14216157]
[1744304460753,0.063,109.55,109.52,34.9497989]
[1744304461431,0.063,109.55,109.52,0.14216157]
[1744304461737,34.87063733,109.55,109.5,104.89426157]
[1744304461936,0.063,109.55,109.51,0.14216157]
[1744304462137,0.063,109.55,109.52,34.80763733]
[1744304462344,0.063,109.55,109.54,34.80763733]
[1744304462536,0.063,109.55,109.53,34.9497989]
[1744304462737,0.063,109.55,109.54,34.80763733]
[1744304462940,0.063,109.55,109.54,34.9497989]
[1744304463357,34.87063733,109.55,109.52,81.0]
[1744304463538,10.7305,109.55,109.52,81.0]
[1744304463855,45.53783733,109.55,109.52,81.0]
[1744304464029,45.53783733,109.55,109.5,14.76216157]
[1744304464030,34.80763733,109.54,109.5,14.76216157]
[1744304464226,34.80763733,109.53,109.5,14.76216157]
[1744304464531,17.0909,109.55,109.5,14.62]
[1744304464751,34.80763733,109.53,109.5,14.62]
[1744304464957,51.89853733,109.55,109.5,14.62]
[1744304464958,34.80763733,109.51,109.5,14.62]
[1744304465660,43.93913733,109.51,109.47,0.14216157]
[1744304465830,43.93913733,109.51,109.46,125.1479989]
[1744304465831,36.37793733,109.48,109.46,0.063]
[1744304466158,34.80763733,109.47,109.46,0.063]
[1744304466866,60.80763733,109.47,109.46,0.063]
[1744304467354,1.5703,109.48,109.46,0.063]
[1744304467565,10.7017,109.51,109.47,34.80763733]
[1744304467863,1.5702,109.51,109.48,0.42648471]
[1744304468043,6.6133,109.53,109.5,34.80763733]
[1744304468240,1.6298,109.54,109.5,34.80763733]
[1744304468435,1.6298,109.54,109.5,0.42648471]
[1744304468759,1.6298,109.54,109.51,34.80763733]
[1744304469259,0.063,109.55,109.52,34.80763733]
[1744304469770,0.063,109.55,109.5,116.23412204]
[1744304470058,34.80763733,109.54,109.5,81.0]
[1744304470233,34.80763733,109.52,109.48,0.42648471]
[1744304470433,34.80763733,109.51,109.48,0.42648471]
[1744304470653,26.0,109.54,109.48,0.42648471]
[1744304470965,60.80763733,109.53,109.49,34.80763733]
[1744304471342,0.063,109.55,109.5,34.80763733]
[1744304471551,0.063,109.55,109.52,43.93833733]
[1744304471737,0.063,109.55,109.53,49.77412204]
[1744304472057,0.063,109.55,109.54,35.23412204]
[1744304472479,0.063,109.55,109.53,130.34763733]
[1744304473339,34.87063733,109.55,109.53,14.54]
[1744304473548,43.99923733,109.55,109.53,14.54]
[1744304473763,34.80763733,109.54,109.48,0.28432314]
[1744304473942,34.80763733,109.52,109.48,34.9497989]
[1744304474144,34.80763733,109.5,109.47,365.84]
[1744304474356,34.80763733,109.49,109.47,284.84]
[1744304474660,6.6387,109.53,109.47,284.84]
[1744304474661,34.80763733,109.5,109.47,284.84]
[1744304474862,1.6599,109.51,109.47,284.84]
[1744304475061,34.80763733,109.48,109.47,284.84]
[1744304475249,1.6599,109.51,109.47,284.84]
[1744304475250,34.80763733,109.49,109.47,284.84]
[1744304475453,1.6599,109.51,109.48,34.80763733]
[1744304475859,1.6599,109.51,109.48,43.94163733]
[1744304476065,1.6599,109.51,109.48,34.80763733]
[1744304476466,1.638,109.55,109.5,34.80763733]
[1744304476648,36.44563733,109.55,109.5,34.80763733]
[1744304476959,34.80763733,109.54,109.5,34.80763733]
[1744304477162,10.7665,109.55,109.49,81.0]
[1744304477359,34.80763733,109.53,109.49,81.0]
[1744304477674,10.7665,109.55,109.5,34.9497989]
[1744304477841,1.638,109.55,109.52,34.80763733]
[1744304478363,0.063,109.55,109.53,34.9497989]
[1744304478567,0.063,109.55,109.53,49.4897989]
[1744304479451,0.063,109.55,109.53,14.54]
[1744304480054,34.87063733,109.55,109.53,14.54]
[1744304480467,0.063,109.55,109.53,14.54]
[1744304481056,0.063,109.55,109.53,58.47743733]
[1744304481269,0.063,109.55,109.53,14.54]
[1744304481676,0.063,109.55,109.52,81.0]
[1744304481854,34.87063733,109.55,109.52,81.0]
[1744304482050,0.063,109.55,109.53,0.42648471]
[1744304482270,0.063,109.55,109.54,68.13944776]
[1744304482856,0.063,109.55,109.54,68.4237709]
[1744304483563,0.063,109.55,109.54,149.4237709]
[1744304484177,0.063,109.55,109.54,158.5527709]
[1744304484358,0.063,109.55,109.54,95.68216157]
[1744304484563,0.063,109.55,109.54,95.54]
[1744304484877,0.063,109.55,109.52,27.92211043]
[1744304485062,1.6289,109.55,109.49,0.14216157]
[1744304485257,36.43653733,109.55,109.5,34.80763733]
[1744304485463,34.80763733,109.52,109.48,130.34763733]
[1744304485978,34.80763733,109.51,109.48,14.54]
[1744304486180,9.129,109.54,109.49,0.14216157]
[1744304486559,45.56503733,109.55,109.51,34.80763733]
[1744304486864,45.56503733,109.55,109.51,0.14216157]
[1744304487502,62.78336633,109.55,109.51,0.14216157]
[1744304488087,52.02596633,109.54,109.49,81.0]
[1744304488255,52.02596633,109.53,109.49,90.1332]
[1744304489364,0.063,109.55,109.52,52.1681279]
[1744304489562,32.0119,109.55,109.5,81.0]
[1744304489878,52.02596633,109.53,109.5,81.0]
[1744304490080,52.02596633,109.52,109.5,81.0]
[1744304490376,52.02596633,109.51,109.47,284.84]
[1744304490564,52.02596633,109.49,109.46,0.063]
[1744304490765,52.02596633,109.48,109.46,0.063]
[1744304490977,52.02596633,109.47,109.46,0.063]
[1744304491488,60.15956633,109.47,109.46,0.063]
[1744304491874,9.1324,109.5,109.46,0.063]
[1744304492073,16.7983,109.51,109.46,52.08896633]
[1744304492267,52.02596633,109.5,109.46,52.08896633]
[1744304492463,52.02596633,109.5,109.46,0.063]
[1744304492961,52.02596633,109.49,109.46,0.063]
[1744304493165,78.02596633,109.47,109.46,0.063]
[1744304493390,131.84249423,109.47,109.45,0.063]
[1744304493586,78.1681279,109.44,109.43,0.063]
[1744304493787,106.09733833,109.44,109.43,0.063]
[1744304493977,18.933972,109.43,109.41,0.063]
[1744304494181,106.09733833,109.44,109.41,0.063]
[1744304494182,26.0,109.44,109.41,0.063]
[1744304494387,6.018,109.46,109.41,52.08896633]
[1744304494578,52.02596633,109.45,109.42,0.14216157]
[1744304494769,52.02596633,109.46,109.42,0.14216157]
[1744304495001,53.67436633,109.47,109.43,52.02596633]
[1744304495488,1.6484,109.47,109.43,52.02596633]
[1744304495697,1.6484,109.47,109.44,52.02596633]
[1744304495865,1.5094,109.51,109.46,52.02596633]
[1744304496064,104.05193266,109.47,109.43,81.0]
[1744304496399,104.05193266,109.47,109.41,0.063]
[1744304496400,26.0,109.42,109.41,0.063]
[1744304496700,78.02596633,109.42,109.34,9.1457]
[1744304496864,52.02596633,109.38,109.36,14.3201769]
[1744304497066,52.02596633,109.37,109.36,14.3201769]
[1744304497278,78.02596633,109.4,109.36,14.3201769]
[1744304497279,52.02596633,109.38,109.36,14.3201769]
[1744304497500,7.8439,109.39,109.36,14.3201769]
[1744304497789,61.16916633,109.37,109.36,14.3201769]
[1744304497993,113.19513266,109.37,109.36,12.6535769]
[1744304498293,132.12910466,109.37,109.36,12.6535769]
[1744304498669,132.27126623,109.37,109.36,10.9869769]
[1744304498880,18.933972,109.36,109.32,0.063]
[1744304499079,52.02596633,109.33,109.32,0.063]
[1744304499985,61.17256633,109.33,109.32,0.063]
[1744304500190,80.10653833,109.33,109.32,0.063]
[1744304500700,52.02596633,109.33,109.32,0.063]
[1744304500891,9.1457,109.34,109.32,0.063]
[1744304501098,52.02596633,109.33,109.32,0.063]
[1744304502709,70.95993833,109.33,109.32,0.063]
[1744304502878,0.14216157,109.32,109.31,0.063]
[1744304503077,130.19409423,109.32,109.31,0.063]
[1744304503605,78.02596633,109.32,109.31,0.063]
[1744304503805,26.0,109.32,109.31,0.063]
[1744304504014,22.99816157,109.38,109.31,0.063]
[1744304504203,52.02596633,109.4,109.32,14.52]
[1744304504388,52.02596633,109.38,109.34,52.02596633]
[1744304504783,52.02596633,109.35,109.32,81.0]
[1744304504988,52.02596633,109.35,109.31,52.08896633]
[1744304505188,26.0,109.36,109.31,52.08896633]
[1744304505388,0.14216157,109.38,109.31,52.08896633]
[1744304505589,52.02596633,109.36,109.31,0.063]
[1744304505789,9.1432,109.37,109.31,52.08896633]
[1744304505992,26.0,109.36,109.32,52.02596633]
[1744304506201,9.1409,109.4,109.34,52.1681279]
[1744304506405,1.75406157,109.44,109.36,52.02596633]
[1744304506715,52.02596633,109.4,109.35,52.02596633]
[1744304507016,78.02596633,109.39,109.34,52.1681279]
[1744304507188,26.0,109.39,109.34,52.1681279]
[1744304507407,31.9867,109.42,109.34,52.1681279]
[1744304507588,78.02596633,109.39,109.34,0.14216157]
[1744304507907,78.02596633,109.39,109.36,52.1681279]
[1744304507908,26.0,109.39,109.36,52.1681279]
[1744304508105,26.0,109.4,109.36,52.1681279]
[1744304508283,52.02596633,109.43,109.38,52.02596633]
[1744304508480,52.02596633,109.41,109.36,52.1681279]
[1744304508707,18.64964886,109.44,109.37,52.02596633]
[1744304508912,52.02596633,109.42,109.38,52.02596633]
[1744304509094,52.02596633,109.42,109.36,123.45571043]
[1744304509407,52.02596633,109.4,109.36,95.52]
[1744304509715,52.02596633,109.4,109.36,14.52]
[1744304509900,26.0,109.41,109.36,75.68996633]
[1744304509901,78.02596633,109.41,109.36,75.68996633]
[1744304510097,52.02596633,109.42,109.37,52.02596633]
[1744304510613,52.02596633,109.39,109.36,14.52]
[1744304510813,52.02596633,109.38,109.36,14.52]
[1744304511118,9.1388,109.43,109.37,52.1681279]
[1744304511413,9.1351,109.47,109.41,52.02596633]
[1744304511617,52.02596633,109.45,109.41,52.02596633]
[1744304511811,52.02596633,109.46,109.41,52.02596633]
[1744304512008,52.02596633,109.45,109.41,52.02596633]
[1744304512315,9.1344,109.48,109.42,52.02596633]
[1744304512490,26.0,109.44,109.42,52.02596633]
[1744304512687,26.0,109.44,109.42,14.52]
[1744304513093,26.0,109.44,109.42,66.54596633]
[1744304513395,26.0,109.42,109.38,0.14216157]
[1744304513599,26.0,109.42,109.38,52.1681279]
[1744304513905,52.02596633,109.41,109.37,52.1681279]
[1744304514107,52.02596633,109.41,109.37,0.14216157]
[1744304514415,9.1349,109.47,109.39,19.07613357]
[1744304514714,0.17216157,109.48,109.42,0.14216157]
[1744304514715,61.19016633,109.48,109.42,0.14216157]
[1744304514893,52.02596633,109.47,109.43,52.02596633]
[1744304515092,9.1642,109.48,109.43,52.02596633]
[1744304515093,26.0,109.46,109.43,52.02596633]
[1744304515312,52.05596633,109.48,109.44,52.02596633]
[1744304515621,0.03,109.48,109.45,52.02596633]
[1744304516215,0.03,109.48,109.44,61.3052279]
[1744304516425,0.03,109.48,109.45,52.02596633]
[1744304517105,0.03,109.48,109.44,52.1681279]
[1744304517618,26.0,109.47,109.44,0.14216157]
[1744304517823,78.02596633,109.47,109.43,52.02596633]
[1744304517992,52.02596633,109.45,109.42,14.52]
[1744304518194,52.02596633,109.44,109.42,14.52]
[1744304518408,9.1357,109.46,109.42,14.52]
[1744304518813,52.02596633,109.45,109.42,14.52]
[1744304519008,26.0,109.46,109.42,66.54596633]
[1744304519200,26.0,109.46,109.42,75.68496633]
[1744304519402,78.02596633,109.46,109.42,66.54596633]
[1744304520320,78.02596633,109.46,109.42,14.52]
[1744304521012,26.0,109.46,109.42,66.54596633]
[1744304521217,78.02596633,109.46,109.42,14.52]
[1744304521423,52.02596633,109.45,109.42,14.52]
[1744304521602,78.02596633,109.46,109.42,14.52]
[1744304521922,26.0,109.46,109.42,75.68496633]
[1744304522124,52.02596633,109.45,109.42,14.52]
[1744304522298,52.02596633,109.45,109.41,52.02596633]
[1744304522632,78.02596633,109.42,109.36,6.1657]
[1744304522801,52.02596633,109.4,109.36,58.19166633]
[1744304523006,26.0,109.41,109.37,52.1681279]
[1744304523720,18.933972,109.44,109.37,52.1681279]
[1744304523905,84.00396633,109.45,109.37,52.1681279]
[1744304524228,0.063,109.55,109.54,0.5]
[1744304524420,0.063,109.55,109.54,139.82309423]
[1744304524810,0.03,109.63,109.54,139.82309423]
[1744304524811,14.12632208,109.68,109.62,0.5]
[1744304525052,14.12632208,109.68,109.65,104.55193266]
[1744304525330,14.12632208,109.68,109.67,26.0]
[1744304525524,14.12632208,109.68,109.67,78.52596633]
[1744304525747,28.25264416,109.69,109.68,1.0]
[1744304525907,56.50528832,109.75,109.74,52.52596633]
[1744304526227,56.50528832,109.75,109.74,104.55193266]
[1744304526437,54.86758832,109.75,109.74,114.16433266]
[1744304526632,54.86758832,109.75,109.74,113.66433266]
[1744304527213,54.86758832,109.75,109.74,26.5]
[1744304527408,54.86758832,109.75,109.71,0.5]
[1744304527626,54.86758832,109.75,109.7,0.14216157]
[1744304527627,54.86758832,109.75,109.73,0.5]
[1744304527928,54.86758832,109.75,109.74,52.6681279]
[1744304528130,54.86758832,109.75,109.74,104.69409423]
[1744304528330,54.86758832,109.75,109.74,26.64216157]
[1744304528629,0.28432314,109.76,109.73,0.5]
[1744304528831,18.64964886,109.79,109.75,52.02596633]
[1744304529123,0.28432314,109.78,109.76,0.5]
[1744304529326,0.14216157,109.81,109.79,0.5]
[1744304529509,0.42648471,109.81,109.74,26.0]
[1744304529715,0.14216157,109.81,109.74,26.0]
[1744304529922,18.79181043,109.83,109.75,52.02596633]
[1744304530127,9.1041,109.85,109.81,52.02596633]
[1744304530128,0.14216157,109.85,109.81,52.02596633]
[1744304530309,0.14216157,109.85,109.75,52.02596633]
[1744304530628,52.02596633,109.84,109.76,9.1107]
[1744304530811,8.1037,109.87,109.82,52.02596633]
[1744304531126,8.1037,109.87,109.76,9.1107]
[1744304531127,8.1037,109.87,109.76,31.8876]
[1744304531308,52.02596633,109.85,109.76,9.1107]
[1744304531635,8.1037,109.87,109.78,0.14216157]
[1744304531925,52.1681279,109.82,109.76,61.13666633]
[1744304532124,18.933972,109.81,109.76,9.1107]
[1744304532327,26.0,109.82,109.76,9.1107]
[1744304532551,18.79181043,109.86,109.8,52.02596633]
[1744304532712,1.6233,109.87,109.8,52.02596633]
[1744304532917,16.8,109.89,109.86,52.02596633]
[1744304533222,16.8,109.99,109.88,52.02596633]
[1744304533421,16.8,109.99,109.9,97.8324419]
[1744304533727,16.8,109.99,109.91,26.0]
[1744304533904,25.8919,109.99,109.9,45.80647557]
[1744304534101,52.02596633,109.94,109.86,45.69285008]
[1744304534321,0.17216157,109.96,109.92,8.79659886]
[1744304534516,18.64964886,109.94,109.9,0.5]
[1744304534801,18.64964886,109.94,109.93,8.79659886]
[1744304535123,17.24,109.95,109.93,8.79659886]
[1744304535317,69.26596633,109.94,109.93,0.46339886]
[1744304535508,52.02596633,109.94,109.88,0.5]
[1744304535712,52.02596633,109.95,109.88,0.5]
[1744304535932,284.46,109.98,109.93,0.5]
[1744304536119,17.24,109.97,109.95,0.5]
[1744304536325,52.02596633,109.96,109.94,0.5]
[1744304536526,17.22,109.98,109.94,0.5]
[1744304536732,17.22,109.98,109.95,0.5]
[1744304536934,52.02596633,109.96,109.94,0.5]
[1744304537127,26.0,109.96,109.92,0.5]
[1744304537446,96.67561519,109.95,109.94,54.1253411]
[1744304537643,148.98590466,109.95,109.94,54.1253411]
[1744304537944,7.6293,110.03,109.94,54.6253411]
[1744304537945,284.31,110.01,109.94,54.6253411]
[1744304538123,17.22,110.0,109.94,0.5]
[1744304538455,52.02596633,109.96,109.94,0.5]
[1744304538624,52.02596633,109.97,109.95,0.5]
[1744304538821,104.05193266,109.96,109.93,26.9918458]
[1744304539029,26.0,109.96,109.94,26.9918458]
[1744304539232,104.05193266,109.95,109.94,26.9918458]
[1744304539523,26.0,109.96,109.94,26.9918458]
[1744304539742,104.3362558,109.95,109.94,26.9918458]
[1744304539943,26.0,109.96,109.94,26.9918458]
[1744304540244,26.0,109.92,109.91,54.1253411]
[1744304540443,149.12806623,109.92,109.91,54.1253411]
[1744304540633,26.28432314,109.92,109.91,54.1253411]
[1744304540831,149.12806623,109.92,109.91,54.1253411]
[1744304541033,0.28432314,109.91,109.86,0.5]
[1744304541352,71.1020999,109.95,109.9,0.5]
[1744304541555,52.02596633,109.95,109.9,0.5]
[1744304541735,52.02596633,109.91,109.9,0.5]
[1744304542055,52.02596633,109.91,109.87,0.5]
[1744304542228,52.02596633,109.89,109.87,0.5]
[1744304542427,26.0,109.92,109.87,0.5]
[1744304542641,26.0,109.9,109.87,0.5]
[1744304542846,52.02596633,109.88,109.87,0.5]
[1744304543044,52.02596633,109.88,109.86,0.5]
[1744304543253,78.02596633,109.87,109.85,0.5]
[1744304543430,0.28432314,109.91,109.86,0.5]
[1744304543631,52.02596633,109.88,109.86,0.5]
[1744304543825,52.02596633,109.87,109.84,0.5]
[1744304544031,52.02596633,109.86,109.83,0.5]
[1744304544327,26.8777,109.92,109.83,0.5]
[1744304544328,17.78,109.92,109.88,0.5]
[1744304544537,78.02596633,109.89,109.86,0.5]
[1744304544738,0.14216157,109.91,109.87,0.5]
[1744304544739,26.0,109.91,109.87,0.5]
[1744304544950,52.02596633,109.9,109.87,0.5]
[1744304545163,52.02596633,109.89,109.88,0.5]
[1744304545455,26.0,109.9,109.86,0.5]
[1744304545655,52.02596633,109.95,109.89,0.5]
[1744304545858,0.14216157,109.89,109.82,0.5]
[1744304546153,52.02596633,109.9,109.87,0.5]
[1744304546329,52.02596633,109.88,109.86,0.5]
[1744304546526,26.0,109.9,109.87,0.5]
[1744304546854,52.02596633,109.88,109.85,0.5]
[1744304547158,19.07613357,109.89,109.85,0.5]
[1744304547450,26.0,109.9,109.85,0.5]
[1744304547641,52.02596633,109.89,109.87,0.5]
[1744304547837,15.6876,109.94,109.89,0.5]
[1744304547838,78.02596633,109.91,109.89,0.5]
[1744304548034,52.02596633,109.93,109.9,0.5]
[1744304548249,52.02596633,109.93,109.91,0.5]
[1744304548452,0.03,109.98,109.92,0.5]
[1744304548636,0.03,109.98,109.96,0.5]
[1744304549536,52.02596633,109.97,109.91,0.5]
[1744304549734,0.03,109.98,109.92,0.5]
[1744304549735,52.02596633,109.93,109.92,0.5]
[1744304549936,0.03,109.98,109.93,0.5]
[1744304550256,26.0,109.96,109.93,0.5]
[1744304550456,52.02596633,109.94,109.91,0.5]
[1744304550632,78.02596633,109.92,109.88,0.5]
[1744304550828,9.095,109.95,109.91,0.5]
[1744304551029,9.095,109.95,109.9,0.5]
[1744304551242,9.095,109.95,109.91,0.5]
[1744304551552,9.095,109.95,109.88,0.5]
[1744304551553,52.02596633,109.92,109.88,0.5]
[1744304551736,26.0,109.91,109.88,0.5]
[1744304551933,52.02596633,109.89,109.87,0.5]
[1744304552132,52.02596633,109.88,109.87,0.5]
[1744304552333,52.02596633,109.88,109.85,0.5]
[1744304552545,52.02596633,109.9,109.86,0.5]
[1744304552747,9.1005,109.89,109.84,0.5]
[1744304552968,52.02596633,109.85,109.83,0.5]
[1744304553136,52.02596633,109.84,109.82,0.063]
[1744304553447,52.02596633,109.83,109.82,0.063]
[1744304553838,52.31028947,109.83,109.82,0.063]
[1744304554037,71.1020999,109.83,109.82,0.063]
[1744304554333,26.28432314,109.83,109.82,0.063]
[1744304554534,26.0,109.83,109.82,0.063]
[1744304554734,52.02596633,109.83,109.82,0.063]
[1744304554940,52.31028947,109.83,109.82,0.063]
[1744304556167,26.0,109.84,109.82,0.063]
[1744304556462,52.02596633,109.83,109.82,0.063]
[1744304556661,52.02596633,109.83,109.76,52.02596633]
[1744304556851,52.02596633,109.8,109.74,81.14216157]
[1744304557051,52.02596633,109.77,109.72,0.14216157]
[1744304557253,52.02596633,109.8,109.71,0.063]
[1744304557254,52.02596633,109.75,109.71,0.063]
[1744304557466,52.02596633,109.72,109.71,0.063]
[1744304557961,52.02596633,109.72,109.61,1.6488]
[1744304557962,26.0,109.69,109.61,82.6488]
[1744304558336,52.45245104,109.7,109.62,52.02596633]
[1744304558542,26.28432314,109.7,109.61,91.7718]
[1744304558874,9.54118471,109.72,109.65,52.02596633]
[1744304559074,52.02596633,109.7,109.65,61.14566633]
[1744304559364,0.28432314,109.72,109.64,18.79181043]
[1744304559365,52.02596633,109.68,109.64,18.79181043]
[1744304559533,9.39842314,109.72,109.64,18.79181043]
[1744304559534,52.02596633,109.69,109.64,18.79181043]
[1744304559736,52.02596633,109.68,109.64,0.14216157]
[1744304559938,9.39842314,109.72,109.65,52.02596633]
[1744304560161,52.02596633,109.69,109.64,70.81777676]
[1744304560352,52.02596633,109.69,109.63,18.933972]
[1744304560659,52.02596633,109.67,109.63,18.79181043]
[1744304560866,52.02596633,109.65,109.62,81.0]
[1744304561171,52.02596633,109.64,109.6,81.14216157]
[1744304561341,26.0,109.67,109.62,0.14216157]
[1744304561543,52.02596633,109.66,109.63,18.64964886]
[1744304561740,284.16,109.74,109.66,18.64964886]
[1744304561741,9.25536157,109.73,109.66,18.64964886]
[1744304561958,26.0,109.7,109.66,18.64964886]
[1744304562262,9.1132,109.73,109.66,70.67561519]
[1744304562638,52.02596633,109.71,109.66,70.67561519]
[1744304562964,52.02596633,109.68,109.65,18.64964886]
[1744304563164,35.1141,109.72,109.64,18.79181043]
[1744304563466,52.02596633,109.71,109.67,18.64964886]
[1744304563959,52.02596633,109.71,109.66,52.02596633]
[1744304564176,29.1073,109.76,109.66,52.02596633]
[1744304564177,9.25036157,109.79,109.67,18.79181043]
[1744304564333,52.02596633,109.75,109.67,18.64964886]
[1744304564538,26.0,109.72,109.67,18.64964886]
[1744304564734,52.02596633,109.71,109.67,18.64964886]